fUST/lending_fUST_20250930
["ID","MTS","AMOUNT","RATE_DAILY","PERIOD"]
[388423316,1759164573618,-402.17092257,0.00023438,2]
[388423317,1759164573646,-480.0,0.00023438,2]
[388423318,1759164573674,-480.0,0.00023438,2]
[388423319,1759164573702,-480.0,0.00023438,2]
[388423320,1759164573734,-82.41737994,0.00023438,2]
[388423321,1759164576574,10196.08411892,0.00023364,2]
[388423322,1759164577531,5000.0,0.00023401,2]
[388423327,1759164593479,4349.33214765,0.00023401,2]
[388423328,1759164602212,5000.0,0.00023401,2]
[388423329,1759164602448,-253.58066318,0.00023431,2]
[388423330,1759164616176,-46.41933682,0.00023431,2]
[388423331,1759164616198,-241.33829652,0.00023431,2]
[388423334,1759164618215,-58.66170348,0.00023431,2]
[388423335,1759164618236,-300.0,0.00023431,2]
[388423336,1759164618256,-251.00829652,0.00023431,2]
[388423337,1759164625813,5000.0,0.00023401,2]
[388423341,1759164631926,-48.99170348,0.00023431,2]
[388423342,1759164631951,-210.09829652,0.00023431,2]
[388423379,1759164632432,-89.90170348,0.00023431,2]
[388423381,1759164632443,-1200.0,0.00023431,2]
[388423383,1759164632452,-1893.29194751,0.00023433,2]
[388423386,1759164632464,-258.90087627,0.00023433,2]
[388423388,1759164632477,-8043.89129514,0.00023433,2]
[388423390,1759164632487,-480.0,0.00023437,2]
[388423392,1759164632496,-521.71,0.00023437,2]
[388423394,1759164632505,-480.0,0.00023437,2]
[388423415,1759164632618,-480.0,0.00023437,2]
[388423417,1759164632628,-4814.42,0.00023437,2]
[388423419,1759164632638,-500.0,0.00023437,2]
[388423421,1759164632647,-170.67133341,0.00023437,2]
[388423423,1759164632656,-1844.69,0.00023437,2]
[388423425,1759164632665,-1147.45,0.00023437,2]
[388423427,1759164632674,-480.0,0.00023437,2]
[388423429,1759164632683,-515.08,0.00023437,2]
[388423431,1759164632692,-480.0,0.00023437,2]
[388423433,1759164632701,-480.0,0.00023437,2]
[388423435,1759164632710,-620.0,0.00023437,2]
[388423437,1759164632719,-161.5926491,0.00023438,2]
[388423439,1759164632728,-299.59161059,0.00023438,2]
[388423441,1759164632737,-397.58262006,0.00023438,2]
[388423443,1759164632747,-480.0,0.00023438,2]
[388423445,1759164632756,-480.0,0.00023438,2]
[388423447,1759164632765,-480.0,0.00023438,2]
[388423449,1759164632774,-480.0,0.00023438,2]
[388423451,1759164632783,-480.0,0.00023438,2]
[388423453,1759164632792,-480.0,0.00023438,2]
[388423455,1759164632801,-480.0,0.00023438,2]
[388423457,1759164632810,-480.0,0.00023438,2]
[388423459,1759164632819,-480.0,0.00023438,2]
[388423461,1759164632828,-589.63,0.00023438,2]
[388423463,1759164632837,-480.0,0.00023438,2]
[388423465,1759164632846,-480.0,0.00023438,2]
[388423467,1759164632855,-480.0,0.00023438,2]
[388423469,1759164632865,-480.0,0.00023438,2]
[388423471,1759164632874,-480.0,0.00023438,2]
[388423472,1759164632883,-480.0,0.00023438,2]
[388423474,1759164632892,-480.0,0.00023438,2]
[388423476,1759164632901,-480.0,0.00023438,2]
[388423478,1759164632910,-14153.33319966,0.00023439,2]
[388423483,1759164632950,181.224444,0.00022441,2]
[388423630,1759164638308,-480.0,0.00023437,2]
[388423632,1759164638318,-480.0,0.00023438,2]
[388423634,1759164638327,-35846.66680034,0.00023439,2]
[388423636,1759164638337,-160.0,0.00023439,2]
[388423638,1759164638346,-1000.0,0.00023451,2]
[388423640,1759164638356,-1000.0,0.00023451,2]
[388423642,1759164638366,-151.0,0.00023451,2]
[388423644,1759164638376,-1000.0,0.00023451,2]
[388423646,1759164638385,-1000.0,0.00023451,2]
[388423648,1759164638395,-1000.0,0.00023451,2]
[388423650,1759164638405,-1000.0,0.00023451,2]
[388423653,1759164638415,-251.89971375,0.00023451,2]
[388423655,1759164638424,-1000.0,0.00023451,2]
[388423657,1759164638434,-803.95950308,0.00023451,2]
[388423659,1759164638444,-151.0,0.00023451,2]
[388423661,1759164638454,-151.0,0.00023451,2]
[388423663,1759164638464,-151.0,0.00023451,2]
[388423665,1759164638474,-151.0,0.00023451,2]
[388423667,1759164638483,-151.0,0.00023451,2]
[388423669,1759164638492,-151.0,0.00023451,2]
[388423671,1759164638502,-267.85796066,0.00023451,2]
[388423673,1759164638512,-500.0,0.00023451,2]
[388423675,1759164638522,-500.0,0.00023451,2]
[388423677,1759164638531,-500.0,0.00023451,2]
[388423679,1759164638541,-500.0,0.00023451,2]
[388423681,1759164638550,-500.0,0.00023451,2]
[388423683,1759164638560,-500.0,0.00023451,2]
[388423685,1759164638570,-500.0,0.00023451,2]
[388423687,1759164638580,-500.0,0.00023451,2]
[388423689,1759164638589,-500.0,0.00023451,2]
[388423691,1759164638600,-500.0,0.00023451,2]
[388423693,1759164638610,-151.0,0.00023451,2]
[388423695,1759164638620,-500.0,0.00023451,2]
[388423697,1759164638630,-151.0,0.00023451,2]
[388423699,1759164638639,-500.0,0.00023451,2]
[388423701,1759164638649,-500.0,0.00023451,2]
[388423703,1759164638659,-151.0,0.00023451,2]
[388423705,1759164638669,-1440.15,0.00023453,2]
[388423707,1759164638679,-6301.25,0.00023454,3]
[388423709,1759164638688,-3150.63,0.00023454,3]
[388423710,1759164638700,-1575.31,0.00023454,3]
[388423712,1759164638711,-233.87608454,0.00023454,3]
[388423714,1759164638721,-787.66,0.00023454,3]
[388423716,1759164638730,-393.83,0.00023454,3]
[388423718,1759164638740,-196.91,0.00023454,3]
[388423720,1759164638750,-590.77,0.00023454,3]
[388423723,1759164638760,-1440.15,0.00023462,2]
[388423724,1759164638770,-1440.15,0.00023462,2]
[388423725,1759164638780,-480.0,0.00023463,2]
[388423726,1759164638790,-480.0,0.00023463,2]
[388423727,1759164638799,-480.0,0.00023463,2]
[388423728,1759164638809,-480.0,0.00023463,2]
[388423729,1759164638818,-596.36,0.00023463,2]
[388423730,1759164638828,-480.0,0.00023463,2]
[388423731,1759164638837,-480.0,0.00023463,2]
[388423732,1759164638847,-480.0,0.00023463,2]
[388423733,1759164638856,-480.0,0.00023463,2]
[388423734,1759164638865,-542.08872935,0.00023463,2]
[388423735,1759164638875,-3496.08,0.00023463,2]
[388423736,1759164638885,-1095.37,0.00023463,2]
[388423737,1759164638895,-480.0,0.00023463,2]
[388423738,1759164638905,-480.0,0.00023463,2]
[388423739,1759164638915,-1349.09,0.00023463,2]
[388423740,1759164638925,-1039.26,0.00023463,2]
[388423741,1759164638935,-2599.0,0.00023463,2]
[388423742,1759164638945,-1440.98,0.00023463,2]
[388423743,1759164638955,-480.0,0.00023463,2]
[388423744,1759164638965,-642.81,0.00023463,2]
[388423745,1759164638975,-1440.15,0.00023463,2]
[388423746,1759164638985,-1440.15,0.00023463,2]
[388423747,1759164638995,-1440.15,0.00023463,2]
[388423748,1759164639006,-1440.15,0.00023463,2]
[388423749,1759164639017,-1440.15,0.00023463,2]
[388423750,1759164639026,-480.0,0.00023463,2]
[388423751,1759164639037,-480.0,0.00023463,2]
[388423752,1759164639048,-2341.91,0.00023463,2]
[388423753,1759164639059,-480.0,0.00023463,2]
[388423754,1759164639070,-776.23,0.00023463,2]
[388423755,1759164639086,-580.76,0.00023463,2]
[388423756,1759164639097,-1642.23,0.00023463,2]
[388423757,1759164639108,-2557.3,0.00023463,2]
[388423758,1759164639118,-480.0,0.00023463,2]
[388423759,1759164639131,-480.0,0.00023463,2]
[388423760,1759164639143,-480.0,0.00023463,2]
[388423761,1759164639153,-691.68,0.00023463,2]
[388423762,1759164639163,-500.0,0.00023463,2]
[388423763,1759164639175,-500.0,0.00023463,2]
[388423764,1759164639185,-480.0,0.00023463,2]
[388423766,1759164639196,-535.59,0.00023463,2]
[388423767,1759164639208,-480.0,0.00023463,2]
[388423768,1759164639218,-480.0,0.00023463,2]
[388423769,1759164639228,-1887.42,0.00023463,2]
[388423770,1759164639239,-1663.18,0.00023463,2]
[388423772,1759164639249,-746.54,0.00023463,2]
[388423774,1759164639259,-2557.3,0.00023463,2]
[388423776,1759164639270,-640.16,0.00023463,2]
[388423778,1759164639280,-480.0,0.00023463,2]
[388423780,1759164639289,-633.38,0.00023463,2]
[388423782,1759164639299,-480.0,0.00023463,2]
[388423784,1759164639309,-11073.97,0.00023463,2]
[388423786,1759164639319,-2718.02,0.00023463,2]
[388423788,1759164639330,-621.11,0.00023464,2]
[388423790,1759164639340,-480.0,0.00023464,2]
[388423792,1759164639350,-480.0,0.00023464,2]
[388423794,1759164639360,-491.28,0.00023464,2]
[388423796,1759164639372,-1385.7,0.00023464,2]
[388423798,1759164639384,-480.0,0.00023464,2]
[388423800,1759164639394,-480.0,0.00023464,2]
[388423802,1759164639404,-480.0,0.00023464,2]
[388423804,1759164639416,-480.0,0.00023464,2]
[388423806,1759164639428,-630.97,0.00023464,2]
[388423808,1759164639438,-480.0,0.00023464,2]
[388423810,1759164639448,-480.0,0.00023464,2]
[388423812,1759164639458,-500.0,0.00023464,2]
[388423813,1759164639469,-480.0,0.00023464,2]
[388423814,1759164639479,-609.8,0.00023464,2]
[388423815,1759164639490,-609.8,0.00023464,2]
[388423817,1759164639500,-609.8,0.00023464,2]
[388423818,1759164639510,-609.8,0.00023464,2]
[388423819,1759164639519,-609.8,0.00023464,2]
[388423820,1759164639529,-609.8,0.00023464,2]
[388423821,1759164639539,-609.8,0.00023464,2]
[388423822,1759164639549,-609.8,0.00023464,2]
[388423823,1759164639559,-563.98,0.00023464,2]
[388423824,1759164639569,-155.95996062,0.00023464,2]
[388423825,1759164639579,-734.07,0.00023464,2]
[388423826,1759164639588,-1173.05,0.00023464,2]
[388423827,1759164639598,-481.05609909,0.00023464,2]
[388423828,1759164639608,-800.57,0.00023464,2]
[388423829,1759164639618,-480.0,0.00023464,2]
[388423830,1759164639629,-1196.04,0.00023464,2]
[388423831,1759164639639,-583.93,0.00023464,2]
[388423832,1759164639648,-578.16,0.00023464,2]
[388423833,1759164639659,-480.0,0.00023464,2]
[388423834,1759164639669,-1611.12,0.00023464,2]
[388423835,1759164639680,-1140.79,0.00023464,2]
[388423836,1759164639690,-505.34,0.00023464,2]
[388423837,1759164639700,-676.78,0.00023464,2]
[388423838,1759164639709,-879.25,0.00023464,2]
[388423839,1759164639719,-644.7,0.00023464,2]
[388423840,1759164639729,-480.0,0.00023464,2]
[388423841,1759164639739,-656.61,0.00023464,2]
[388423842,1759164639748,-1480.83,0.00023464,2]
[388423843,1759164639758,-853.74,0.00023464,2]
[388423844,1759164639768,-480.0,0.00023464,2]
[388423846,1759164639777,-480.0,0.00023464,2]
[388423848,1759164639787,-682.54,0.00023464,2]
[388423850,1759164639797,-480.0,0.00023464,2]
[388423851,1759164639806,-480.0,0.00023464,2]
[388423852,1759164639816,-675.01,0.00023464,2]
[388423853,1759164639827,-480.0,0.00023464,2]
[388423855,1759164639836,-1144.88,0.00023464,2]
[388423856,1759164639846,-1077.33282344,0.00023464,2]
[388423857,1759164639856,-480.0,0.00023464,2]
[388423858,1759164639867,-480.0,0.00023464,2]
[388423859,1759164639877,-480.0,0.00023464,2]
[388423860,1759164639887,-744.51,0.00023464,2]
[388423861,1759164639898,-1117.77,0.00023464,2]
[388423862,1759164639908,-480.0,0.00023464,2]
[388423863,1759164639918,-480.0,0.00023464,2]
[388423864,1759164639927,-480.0,0.00023464,2]
[388423866,1759164639937,-1023.78,0.00023464,2]
[388423868,1759164639947,-853.74,0.00023464,2]
[388423869,1759164639957,-3620.99,0.00023464,2]
[388423870,1759164639967,-1562.59,0.00023464,2]
[388423871,1759164639976,-480.0,0.00023464,2]
[388423872,1759164639986,-480.0,0.00023464,2]
[388423874,1759164639996,-480.0,0.00023464,2]
[388423875,1759164640005,-480.0,0.00023464,2]
[388423876,1759164640015,-1134.39,0.00023464,2]
[388423877,1759164640026,-481.7384302,0.00023464,2]
[388423878,1759164640035,-484.91925,0.00023464,2]
[388423879,1759164640045,-654.93,0.00023464,2]
[388423881,1759164640055,-965.23,0.00023464,2]
[388423883,1759164640066,-257.46095742,0.00023464,2]
[388423885,1759164640075,-2407.42,0.00023464,2]
[388423886,1759164640085,-480.0,0.00023464,2]
[388423887,1759164640096,-480.0,0.00023464,2]
[388423888,1759164640106,-480.0,0.00023464,2]
[388423889,1759164640127,-480.0,0.00023464,2]
[388423890,1759164640141,-1940.44,0.00023464,2]
[388423891,1759164640152,-480.0,0.00023464,2]
[388423893,1759164640161,-657.71,0.00023464,2]
[388423894,1759164640171,-480.0,0.00023464,2]
[388423895,1759164640182,-1440.15,0.00023464,2]
[388423896,1759164640192,-1440.15,0.00023464,2]
[388423897,1759164640202,-1440.15,0.00023464,2]
[388423899,1759164640214,-1440.15,0.00023464,2]
[388423900,1759164640224,-1440.15,0.00023464,2]
[388423902,1759164640234,-1440.15,0.00023464,2]
[388423904,1759164640244,-1440.15,0.00023464,2]
[388423905,1759164640255,-1440.15,0.00023464,2]
[388423906,1759164640265,-1440.15,0.00023464,2]
[388423907,1759164640276,-480.0,0.00023464,2]
[388423908,1759164640285,-861.61,0.00023464,2]
[388423909,1759164640296,-480.0,0.00023464,2]
[388423910,1759164640306,-480.0,0.00023464,2]
[388423911,1759164640316,-1230.82,0.00023464,2]
[388423912,1759164640326,-480.0,0.00023464,2]
[388423913,1759164640336,-480.0,0.00023464,2]
[388423914,1759164640347,-480.0,0.00023464,2]
[388423915,1759164640358,-480.0,0.00023464,2]
[388423916,1759164640368,-480.0,0.00023464,2]
[388423917,1759164640379,-480.0,0.00023464,2]
[388423918,1759164640389,-946.62,0.00023464,2]
[388423919,1759164640399,-480.0,0.00023464,2]
[388423920,1759164640409,-480.0,0.00023464,2]
[388423921,1759164640419,-480.0,0.00023464,2]
[388423922,1759164640430,-2515.07,0.00023464,2]
[388423923,1759164640440,-480.0,0.00023464,2]
[388423924,1759164640451,-1509.42,0.00023464,2]
[388423925,1759164640461,-2000.0,0.00023464,7]
[388423926,1759164640471,-480.0,0.00023464,2]
[388423927,1759164640482,-2000.0,0.00023464,7]
[388423928,1759164640492,-2000.0,0.00023464,7]
[388423929,1759164640502,-1394.46,0.00023464,2]
[388423930,1759164640511,-746.42025771,0.00023464,7]
[388423931,1759164640521,-480.0,0.00023464,2]
[388423932,1759164640531,-867.65,0.00023464,2]
[388423933,1759164640541,-1332.39,0.00023464,2]
[388423934,1759164640551,-413.314077,0.00023464,2]
[388423935,1759164640561,-6056.69,0.00023464,2]
[388423936,1759164640571,-500.0,0.00023464,2]
[388423937,1759164640581,-500.0,0.00023464,2]
[388423938,1759164640590,-500.0,0.00023464,2]
[388423939,1759164640600,-500.0,0.00023464,2]
[388423940,1759164640610,-483.90084491,0.00023464,2]
[388423941,1759164640620,-480.0,0.00023464,2]
[388423942,1759164640629,-500.0,0.00023464,2]
[388423943,1759164640639,-500.0,0.00023464,2]
[388423944,1759164640650,-480.0,0.00023464,2]
[388423945,1759164640660,-500.0,0.00023464,2]
[388423946,1759164640670,-520.94069617,0.00023464,2]
[388423947,1759164640680,-480.0,0.00023464,2]
[388423948,1759164640691,-480.0,0.00023464,2]
[388423949,1759164640701,-2877.01,0.00023464,2]
[388423950,1759164640711,-2696.04,0.00023464,2]
[388423951,1759164640721,-480.0,0.00023464,2]
[388423952,1759164640731,-600.14,0.00023464,2]
[388423953,1759164640741,-480.0,0.00023464,2]
[388423954,1759164640751,-696.62,0.00023464,2]
[388423955,1759164640761,-480.0,0.00023464,2]
[388423956,1759164640771,-480.0,0.00023464,2]
[388423957,1759164640780,-1464.58,0.00023464,2]
[388423958,1759164640790,-590.86,0.00023464,2]
[388423959,1759164640800,-480.0,0.00023464,2]
[388423960,1759164640811,-480.0,0.00023464,2]
[388423961,1759164641002,-925.14,0.00023464,2]
[388423962,1759164641013,-745.77,0.00023464,2]
[388423963,1759164641022,-6255.06,0.00023464,2]
[388423964,1759164641032,-480.0,0.00023464,2]
[388423965,1759164641041,-480.0,0.00023464,2]
[388423966,1759164641051,-481.03289711,0.00023464,2]
[388423967,1759164641062,-480.0,0.00023464,2]
[388423968,1759164641071,-2770.39,0.00023464,2]
[388423969,1759164641080,-480.17367363,0.00023464,2]
[388423970,1759164641095,-868.46,0.00023464,2]
[388423971,1759164641105,-327.49792056,0.00023464,2]
[388423972,1759164641115,-480.0,0.00023464,2]
[388423973,1759164641124,-845.56,0.00023464,2]
[388423974,1759164641138,-945.18,0.00023464,2]
[388423975,1759164641147,-480.0,0.00023464,2]
[388423976,1759164641156,-480.0,0.00023464,2]
[388423977,1759164641165,-480.0,0.00023464,2]
[388423978,1759164641177,-6262.52,0.00023464,2]
[388423979,1759164641185,-480.0,0.00023464,2]
[388423980,1759164641196,-896.93,0.00023464,2]
[388423981,1759164641208,-403.37011725,0.00023464,2]
[388423982,1759164641218,-480.0,0.00023464,2]
[388423983,1759164641228,-480.0,0.00023464,2]
[388423984,1759164641237,-162665.86747429,0.00023465,2]
[388423985,1759164641247,-500.0,0.00023465,2]
[388423986,1759164641256,-200.0,0.00023465,10]
[388423987,1759164641265,-200.0,0.00023465,10]
[388423988,1759164641275,-200.0,0.00023465,10]
[388423989,1759164641284,-200.0,0.00023465,10]
[388423990,1759164641293,-200.0,0.00023465,10]
[388423991,1759164641302,-200.0,0.00023465,10]
[388423992,1759164641312,-1440.15,0.00023466,2]
[388423993,1759164641321,-1440.15,0.00023466,2]
[388423994,1759164641330,-1440.15,0.00023466,2]
[388423995,1759164641341,-1440.15,0.00023466,2]
[388423996,1759164641350,-1440.23242648,0.00023466,2]
[388423997,1759164641359,-160.0,0.0002347,3]
[388423998,1759164641368,-609.8,0.00023499,2]
[388423999,1759164641377,-609.8,0.00023499,2]
[388424000,1759164641387,-609.8,0.00023499,2]
[388424001,1759164641396,-151.0,0.000235,8]
[388424002,1759164641406,-151.0,0.000235,7]
[388424003,1759164641415,-500.0,0.000235,2]
[388424004,1759164641424,-10196.08411892,0.00023501,2]
[388424005,1759164641433,-609.8,0.00023538,2]
[388424006,1759164641443,-609.8,0.00023538,2]
[388424007,1759164641452,-609.8,0.00023538,2]
[388424008,1759164641461,-478.14170649,0.00023539,2]
[388424009,1759164641470,-480.0,0.00023539,2]
[388424010,1759164641479,-480.0,0.00023539,2]
[388424011,1759164641488,-360.23164017,0.00023539,2]
[388424012,1759164641497,-480.0,0.00023539,2]
[388424013,1759164641506,-480.45485604,0.00023539,2]
[388424014,1759164641515,-480.0,0.00023539,2]
[388424015,1759164641524,-516.39962578,0.00023539,2]
[388424016,1759164641533,-480.0,0.00023539,2]
[388424017,1759164641544,-480.0,0.00023539,2]
[388424018,1759164641553,-480.0,0.00023539,2]
[388424019,1759164641562,-583.2,0.00023539,2]
[388424020,1759164641572,-480.0,0.00023539,2]
[388424021,1759164641582,-571.26,0.00023539,2]
[388424022,1759164641592,-480.0,0.00023539,2]
[388424023,1759164641601,-480.0,0.00023539,2]
[388424024,1759164641611,-481.01703753,0.00023539,2]
[388424025,1759164641620,-453.39304695,0.00023539,2]
[388424026,1759164641630,-480.0,0.00023539,2]
[388424027,1759164641639,-480.0,0.00023539,2]
[388424028,1759164641649,-716.52,0.00023539,2]
[388424029,1759164641658,-896.63,0.00023539,2]
[388424030,1759164641667,-480.0,0.00023539,2]
[388424031,1759164641676,-917.79,0.00023539,2]
[388424032,1759164641685,-480.0,0.00023539,2]
[388424033,1759164641695,-481.48808713,0.00023539,2]
[388424034,1759164641704,-480.0,0.00023539,2]
[388424035,1759164641713,-655.19,0.00023539,2]
[388424036,1759164641722,-177.83949429,0.00023539,2]
[388424037,1759164641732,-480.0,0.00023539,2]
[388424038,1759164641741,-480.0,0.00023539,2]
[388424039,1759164641751,-480.0,0.00023539,2]
[388424040,1759164641760,-2113.08,0.00023539,2]
[388424041,1759164641769,-480.0,0.00023539,2]
[388424042,1759164641779,-480.0,0.00023539,2]
[388424043,1759164641788,-1480.41,0.00023539,2]
[388424044,1759164641798,-480.0,0.00023539,2]
[388424045,1759164641808,-480.0,0.00023539,2]
[388424046,1759164641818,-480.0,0.00023539,2]
[388424047,1759164641827,-480.0,0.00023539,2]
[388424048,1759164641837,-480.0,0.00023539,2]
[388424049,1759164641847,-1196.6,0.00023539,2]
[388424050,1759164641856,-480.0,0.00023539,2]
[388424051,1759164641866,-480.0,0.00023539,2]
[388424052,1759164641875,-480.0,0.00023539,2]
[388424053,1759164641885,-480.0,0.00023539,2]
[388424054,1759164641894,-480.0,0.00023539,2]
[388424055,1759164641904,-297.36471193,0.00023539,2]
[388424056,1759164641915,-480.0,0.00023539,2]
[388424057,1759164641925,-872.25,0.00023539,2]
[388424058,1759164641935,-480.0,0.00023539,2]
[388424059,1759164641944,-480.0,0.00023539,2]
[388424060,1759164641954,-480.0,0.00023539,2]
[388424061,1759164641963,-685.54,0.00023539,2]
[388424062,1759164641972,-482.91406733,0.00023539,2]
[388424063,1759164641982,-500.0,0.00023539,2]
[388424064,1759164641991,-480.0,0.00023539,2]
[388424065,1759164642000,-326.95579529,0.00023539,2]
[388424066,1759164642009,-480.0,0.00023539,2]
[388424067,1759164642019,-567.12,0.00023539,2]
[388424068,1759164642028,-482.83070491,0.00023539,2]
[388424069,1759164642038,-480.0,0.00023539,2]
[388424070,1759164642047,-504.77,0.00023539,2]
[388424071,1759164642057,-480.0,0.00023539,2]
[388424072,1759164642066,-480.0,0.00023539,2]
[388424073,1759164642075,-480.0,0.00023539,2]
[388424074,1759164642084,-1122.77,0.00023539,2]
[388424075,1759164642093,-480.0,0.00023539,2]
[388424076,1759164642102,-480.0,0.00023539,2]
[388424077,1759164642112,-998.5,0.00023539,2]
[388424078,1759164642121,-956.38,0.00023539,2]
[388424079,1759164642132,-656.25,0.00023539,2]
[388424080,1759164642143,-953.45,0.00023539,2]
[388424081,1759164642152,-480.0,0.00023539,2]
[388424082,1759164642162,-480.0,0.00023539,2]
[388424083,1759164642171,-699.93,0.00023539,2]
[388424084,1759164642182,-480.0,0.00023539,2]
[388424085,1759164642191,-480.0,0.00023539,2]
[388424086,1759164642202,-600.0,0.00023539,2]
[388424087,1759164642213,-669.29,0.00023539,2]
[388424088,1759164642223,-480.0,0.00023539,2]
[388424089,1759164642233,-480.0,0.00023539,2]
[388424090,1759164642242,-480.0,0.00023539,2]
[388424091,1759164642252,-480.0,0.00023539,2]
[388424092,1759164642262,-480.0,0.00023539,2]
[388424093,1759164642271,-480.0,0.00023539,2]
[388424094,1759164642282,-480.0,0.00023539,2]
[388424095,1759164642291,-480.0,0.00023539,2]
[388424096,1759164642300,-480.0,0.00023539,2]
[388424097,1759164642310,-500.0,0.00023539,2]
[388424098,1759164642319,-480.0,0.00023539,2]
[388424099,1759164642329,-480.0,0.00023539,2]
[388424100,1759164642338,-480.0,0.00023539,2]
[388424101,1759164642348,-480.28,0.00023539,2]
[388424102,1759164642358,-480.0,0.00023539,2]
[388424103,1759164642367,-480.0,0.00023539,2]
[388424104,1759164642377,-480.0,0.00023539,2]
[388424105,1759164642386,-755.6,0.00023539,2]
[388424106,1759164642396,-480.0,0.00023539,2]
[388424107,1759164642406,-588.95,0.00023539,2]
[388424108,1759164642416,-664.35,0.00023539,2]
[388424109,1759164642426,-480.0,0.00023539,2]
[388424110,1759164642435,-480.0,0.00023539,2]
[388424111,1759164642447,-480.0,0.00023539,2]
[388424112,1759164642457,-480.0,0.00023539,2]
[388424113,1759164642466,-480.0,0.00023539,2]
[388424114,1759164642476,-2344.23,0.00023539,2]
[388424115,1759164642485,-480.0,0.00023539,2]
[388424116,1759164642495,-480.0,0.00023539,2]
[388424117,1759164642504,-735.96,0.00023539,2]
[388424118,1759164642514,-500.12,0.00023539,2]
[388424119,1759164642523,-480.0,0.00023539,2]
[388424120,1759164642532,-480.0,0.00023539,2]
[388424121,1759164642542,-804.98,0.00023539,2]
[388424122,1759164642552,-480.0,0.00023539,2]
[388424123,1759164642561,-543.03,0.00023539,2]
[388424124,1759164642570,-1000.0,0.00023539,2]
[388424125,1759164642580,-480.0,0.00023539,2]
[388424126,1759164642589,-480.0,0.00023539,2]
[388424127,1759164642599,-210.77066295,0.00023539,2]
[388424128,1759164642608,-480.0,0.00023539,2]
[388424129,1759164642616,-480.0,0.00023539,2]
[388424130,1759164642626,-762.01,0.00023539,2]
[388424131,1759164642635,-605.15,0.00023539,2]
[388424132,1759164642644,-480.0,0.00023539,2]
[388424133,1759164642653,-583.03,0.00023539,2]
[388424134,1759164642662,-480.0,0.00023539,2]
[388424135,1759164642671,-1440.98,0.00023539,2]
[388424136,1759164642681,-480.0,0.00023539,2]
[388424137,1759164642689,-480.0,0.00023539,2]
[388424138,1759164642704,-480.0,0.00023539,2]
[388424139,1759164642713,-480.0,0.00023539,2]
[388424140,1759164642722,-655.65,0.00023539,2]
[388424141,1759164642732,-597.01,0.00023539,2]
[388424142,1759164642741,-480.0,0.00023539,2]
[388424143,1759164642751,-480.0,0.00023539,2]
[388424144,1759164642761,-480.0,0.00023539,2]
[388424145,1759164642771,-480.0,0.00023539,2]
[388424146,1759164642780,-480.0,0.00023539,2]
[388424147,1759164642789,-480.0,0.00023539,2]
[388424148,1759164642799,-603.18,0.00023539,2]
[388424149,1759164642808,-480.0,0.00023539,2]
[388424150,1759164642817,-480.74465385,0.00023539,2]
[388424152,1759164642827,-607.19,0.00023539,2]
[388424154,1759164642837,-590.23,0.00023539,2]
[388424155,1759164642847,-480.0,0.00023539,2]